Cogmind - Beta 15 @@@ ROGUE MODE // 2025.05.21 @ 00:32:16 Player: Infomantis Result: Escaped! Performance ------------- Evolutions (9) 4500 Regions Visited (29) 5800 Robots Destroyed (339) 1695 Value Destroyed (18145) 18145 Prototype IDs (29) 580 Alien Tech Used (0) 0 Bonus (18059) 18059 TOTAL SCORE: 48779 Bonus ------- High Alert Combat Kills 3308 Follower Combat Kills 4598 Entered Garrisons 1200 Used RIF Installer 4000 Delivered SUBCON Basin 2000 A7 Reached Mainframe 300 Win 3000 Friendly Fire -347 Cogmind --------- Core Integrity 1036/1600 Matter 109/300 Energy 99/100 System Corruption 38% Temperature Cool (0) Movement Core (50) Location To Epsilon Eridani Parts ------- > --- POWER (3) -------- (None) > --- PROPULSION (6) --- Biometal-Myomer Exoskeleton > --- UTILITY (12) ----- Machine Analyzer Graphene Brace Advanced Hacking Suite Relay Coupler [Swarmer] (3) Relay Coupler [Sentry] (20) Relay Coupler [Hunter] (8) > --- WEAPON (4) ------- (None) > --- INVENTORY (5) ---- Huge Storage Unit Precision Matter Filter Relay Coupler [Grunt] (25) Relay Coupler [Duelist] (20) Advanced Remote Datajack Peak State ------------ > --- POWER ------------ Improved Quantum Reactor Antimatter-Quantum Reactor > --- PROPULSION ------- Biometal-Myomer Exoskeleton > --- UTILITY ---------- Armored Scrap Engine Advanced Heat Sink Huge Storage Unit Graphene Brace Advanced Shield Generator Advanced Hacking Suite Experimental System Shield Relay Coupler [Sentry] Relay Coupler [Hunter] > --- WEAPON ----------- Hpw. Kinetic Hardcell Construct/C Hpw. Ballistic Hardcell Construct/C Enhanced Force Lance Enhanced Force Lance > --- INVENTORY -------- Hybrid Antimatter Reactor Advanced Power Amplifier Advanced Cryofiber Web Advanced Coolant Injector Huge Storage Unit Matter Compressor Machine Analyzer Seismic Detector Seismic Detector Transport Network Coupler Precision Matter Filter Advanced Weapon Cycler Advanced Phase Shifter Advanced Shield Generator Improved Force Field Advanced Remote Force Field Relay Coupler [Swarmer] Relay Coupler [Grunt] Relay Coupler [Hunter] Advanced Corruption Screen Gamma Bomb Array Advanced Remote Datajack Advanced Remote Datajack Improved Plasma Cutter Multitool [Rating: 191] Favorites ----------- Power Constructs Engine Ion Engine Power Core Micro Nuclear Core Reactor Constructs Propulsion Constructs Treads Light Treads Leg Constructs Wheel Wheel Flight Unit Cooled Nuclear Pulse Thruster Utility Armored Scrap Engine Device Armored Scrap Engine Storage High-capacity Storage Unit Processor Advanced Targeting Computer Hackware Relay Coupler [Sentry] Protection Improved Medium Armor Plating Weapon Constructs Energy Gun Constructs Energy Cannon Subdweller Beam Cannon Ballistic Gun Subdweller Machine Gun Ballistic Cannon Constructs Launcher Improved Grenade Launcher Special Weapon Improved Remote Datajack Impact Weapon Makeshift Hammer Slashing Weapon Phasing Sabre Piercing Weapon Enhanced Force Lance Special Melee Weapon Advanced Datajack Build | -11 -10 -10 -9 -7 -7 -7 -7 -7 -7 -6 -6 -6 -6 -5 -5 -5 -5 -5 -5 -5 -5 -5 -4 -4 -3 -3 -2 -2 -1 ------- Run | Yrd Mat Sub Rec Fac Was Fac Gar Fac Gar Fac Low Low Zio Pro Fac Gar Fac Ext Cet Arc Hub Gar Fac Gar Res Arm Res Gar Acc Slots Evolved 18 | . . . . 6 . . . . . 2 . . . . 2 . . . . . . . 2 . 2 . 2 . 2 Power 2 | . . . . 1 . . . . . . . . . . . . . . . . . . . . 1 . . . . Propulsion 4 | . . . . 2 . . . . . . . . . . 1 . . . . . . . 1 . . . . . . Utility 10 | . . . . 2 . . . . . 2 . . . . 1 . . . . . . . 1 . . . 2 . 2 Weapon 2 | . . . . 1 . . . . . . . . . . . . . . . . . . . . 1 . . . . Parts Attached 185 | 7 2 10 8 7 . 4 4 7 8 13 4 1 1 1 12 10 4 6 5 4 3 4 1 12 12 11 10 7 7 Power 6 | 1 . . 1 1 . 1 . . . . . . . 1 . . . . . . . . . . . . 1 . . Engine 3 | 1 . . 1 1 . . . . . . . . . . . . . . . . . . . . . . . . . Core 1 | . . . . . . 1 . . . . . . . . . . . . . . . . . . . . . . . Reactor 2 | . . . . . . . . . . . . . . 1 . . . . . . . . . . . . 1 . . Propulsion 9 | 2 . 4 2 . . . . . . . . . . . 1 . . . . . . . . . . . . . . Treads 4 | 2 . 1 1 . . . . . . . . . . . . . . . . . . . . . . . . . . Leg . | . . . . . . . . . . . . . . . . . . . . . . . . . . . . . . Wheel 4 | . . 3 1 . . . . . . . . . . . . . . . . . . . . . . . . . . Hover . | . . . . . . . . . . . . . . . . . . . . . . . . . . . . . . Flight 1 | . . . . . . . . . . . . . . . 1 . . . . . . . . . . . . . . Utility 116 | 2 1 3 3 3 . 2 . 5 4 10 2 1 . . 9 8 4 5 2 3 2 3 1 10 7 7 8 5 6 Device 45 | 1 . 2 1 3 . . . 3 1 4 1 1 . . 4 1 2 . 1 3 1 . . 1 2 3 4 3 3 Storage 8 | 1 1 1 . . . 1 . 1 . . . . . . 1 . . . . . . 1 . . . . 1 . . Processor 13 | . . . . . . . . . . 2 . . . . 4 1 1 1 . . 1 1 . . . 1 . . 1 Hackware 35 | . . . . . . 1 . 1 3 4 . . . . . 3 1 2 . . . 1 1 6 3 2 3 2 2 Protection 15 | . . . 2 . . . . . . . 1 . . . . 3 . 2 1 . . . . 3 2 1 . . . Artifact . | . . . . . . . . . . . . . . . . . . . . . . . . . . . . . . Weapon 54 | 2 1 3 2 3 . 1 4 2 4 3 2 . 1 . 2 2 . 1 3 1 1 1 . 2 5 4 1 2 1 Energy Gun 6 | . . 2 . . . 1 . . . 1 . . . . . . . . 1 . . . . . . 1 . . . Energy Cannon 6 | . . 1 . . . . . . . 1 . . . . . 1 . 1 . . . . . 1 1 . . . . Ballistic Gun 8 | 2 . . 2 . . . 1 . 1 . . . . . . . . . 1 . . . . . 1 . . . . Ballistic Cannon 3 | . . . . . . . . 1 . . . . . . . . . . . . . . . 1 . 1 . . . Launcher 5 | . . . . . . . 1 . . . 1 . . . 2 . . . . . . . . . . . . 1 . Special Weapon 15 | . 1 . . . . . 1 1 3 . . . . . . 1 . . 1 . 1 1 . . 3 . . 1 1 Impact Weapon 4 | . . . . 2 . . . . . 1 1 . . . . . . . . . . . . . . . . . . Slashing Weapon 2 | . . . . . . . 1 . . . . . 1 . . . . . . . . . . . . . . . . Piercing Weapon 3 | . . . . . . . . . . . . . . . . . . . . . . . . . . 2 1 . . Special Melee Weapon 2 | . . . . 1 . . . . . . . . . . . . . . . 1 . . . . . . . . . Unidentified Prototypes 16 | . . . 1 1 . 1 . 1 . 1 . . . . 3 . . . 3 . 2 . . . . . 3 . . Parts Lost 51 | . . 2 2 1 . . . . 1 . . . 8 . 2 1 . 1 . . 2 1 . 2 7 . 2 4 15 Power 7 | . . . 1 1 . . . . . . . . 2 . . . . . . . . . . . . . . . 3 Propulsion 6 | . . 1 1 . . . . . . . . . 2 . . 1 . . . . . . . . . . . . 1 Utility 20 | . . 1 . . . . . . . . . . 3 . 1 . . . . . . 1 . . 4 . 1 1 8 Weapon 18 | . . . . . . . . . 1 . . . 1 . 1 . . 1 . . 2 . . 2 3 . 1 3 3 Highest Loss Streak 7 | . . 1 1 1 . . . . 1 . . . 6 . 1 1 . 1 . . 2 1 . 1 5 . 1 1 7 To Critical Strikes 2 | . . . . . . . . . . . . . 1 . 1 . . . . . . . . . . . . . . Average Backups 18 | 3 10 14 13 11 14 15 14 14 19 19 19 19 19 17 18 19 19 19 19 20 19 21 24 24 24 24 24 24 22 Power 1 | . 1 2 2 . . 1 1 1 . 1 1 1 1 . . . 1 1 1 1 1 1 1 1 1 . 1 . . Propulsion . | . 2 2 2 . . . . . . . . . . . . . . . . . . . . . . . . . . Utility 11 | . 4 4 3 6 10 10 10 9 14 14 12 12 12 11 12 13 13 14 13 13 13 16 19 19 19 18 17 19 18 Weapon 2 | 1 2 3 3 2 2 2 1 2 2 3 4 4 4 4 3 2 2 2 3 3 2 . 1 1 . 2 1 1 . Tool/Special . | . . . . . . . . . . . . . . . . . . . . . . . . . . . . . . Unused Backups 69 | 1 . 5 9 1 2 1 2 1 6 3 . 1 . . 3 2 . 1 1 1 1 . 2 2 3 1 5 . 15 Power 6 | . . 1 3 . . . . . 1 . . . . . . . . . . . . . . . . . 1 . . Propulsion 3 | . . 2 1 . . . . . . . . . . . . . . . . . . . . . . . . . . Utility 48 | . . 2 2 . 1 1 2 1 5 3 . 1 . . . 2 . 1 1 1 1 . 2 2 2 1 3 . 14 Weapon 9 | 1 . . 2 1 1 . . . . . . . . . 2 . . . . . . . . . 1 . 1 . . Tool/Special 3 | . . . 1 . . . . . . . . . . . 1 . . . . . . . . . . . . . 1 Average Slot Usage (%) 64 | . 100 96 76 47 61 60 57 52 52 59 59 60 50 34 49 61 58 58 57 57 57 57 56 55 56 60 65 64 65 Engine 4 | . 14 14 13 6 15 8 2 . 4 . . . . . . . . . . . . . . . . . . . . Core 1 | . . . . . . 5 9 7 2 . . 1 5 . 3 5 5 5 5 5 5 . . . 1 . . . . Reactor 2 | . . . . . . . . . . 6 6 4 . 1 5 3 . . . . . 4 5 4 2 6 5 5 6 Treads 5 | . 28 21 5 7 4 7 6 . . . . . . . . 1 . . . 4 5 5 . 3 1 2 2 . 1 Leg 1 | . . . . . . . . . 4 6 6 6 6 6 3 1 5 5 5 . . . 5 1 . . 1 . 2 Wheel 2 | . . 6 17 . 2 . . . . . . . . . . . . . . . . . . . . . . . . Device 11 | . 14 10 5 11 15 13 8 12 11 16 15 13 15 13 10 14 16 15 11 16 11 6 5 5 11 8 16 17 16 Storage 6 | . 14 14 8 6 7 7 7 7 7 6 6 6 6 6 5 5 5 5 5 5 5 5 5 5 4 4 4 4 3 Processor 3 | . . . . . . . . . . . 6 5 . . 7 2 5 5 11 6 10 16 15 15 8 4 2 . 3 Hackware 3 | . . . . . . 1 5 2 2 8 . . . . . 5 . 1 1 . . 3 9 6 1 9 13 16 15 Protection 1 | . . . . . . . . . . . 4 6 3 . . 4 5 3 3 4 4 . . 3 3 3 2 . . Energy Gun 2 | . . 13 5 2 . . . . . . . . . . . . . . . . . . . . . . . 3 3 Energy Cannon 4 | . . 13 9 5 7 7 7 7 2 . 1 . . 5 2 2 . . . . 1 . . 3 3 1 . . . Ballistic Gun 1 | . 21 . 8 . . . 2 . 1 . . . . . . . . . . . . . . . 3 1 3 . . Ballistic Cannon 2 | . . . . 1 . . . . 4 6 6 6 6 . 3 3 5 5 5 5 5 5 5 2 . 3 6 4 3 Special Weapon 1 | . 6 . . . . . . 2 4 4 1 . . . . 1 4 4 4 . 1 4 5 2 3 3 . 2 3 Peak Build Rating 191 | 7 8 32 36 57 67 68 68 69 84 90 94 94 97 74 107 111 114 119 122 131 135 128 116 132 167 172 191 191 187 Average Rating 89 | 5 7 14 26 44 60 67 61 66 75 86 90 92 83 66 89 102 111 114 118 125 131 122 115 118 151 153 175 169 170 On Entrance 90 | . 7 8 31 34 57 67 65 66 67 83 85 92 94 51 74 106 111 112 113 120 128 121 114 116 132 130 165 191 170 Naked Turns . | . . . . . . . . . . . . . . . . . . . . . . . . . . . . . . Heaviest Build 217 | 14 29 217 217 48 48 49 46 63 66 72 89 91 99 64 84 97 101 96 99 117 125 153 145 166 167 206 196 171 182 Greatest Support 252 | 40 40 40 46 31 76 76 97 80 106 106 118 118 118 72 107 121 113 113 113 113 113 156 156 204 204 204 224 212 252 Greatest Overweight (x) 38 | . . 21 21 2 2 . . . . . . . . . 1 1 . . . 38 1 1 . 1 . 1 1 1 1 Average Overweight (x) . | . . 1 6 . . . . . . . . . . . . . . . . 7 . . . . . . . . . Largest Inventory Capacity 35 | 8 15 35 35 15 15 15 15 20 20 20 20 20 20 20 20 20 20 20 20 20 20 25 25 25 25 25 25 25 25 Average Capacity 20 | 6 13 19 22 14 15 15 15 15 20 20 20 20 20 20 20 20 20 20 20 20 20 24 25 25 25 25 25 25 24 Most Carried 35 | 7 14 35 35 15 15 15 15 17 20 20 20 20 20 18 20 20 20 20 20 20 20 25 25 25 25 25 25 25 25 Average Carried 19 | 3 10 17 19 11 14 14 14 14 19 19 19 19 19 17 18 19 19 19 19 19 19 21 24 24 24 24 24 24 22 Final Capacity 35 | 8 15 35 5 15 15 15 15 20 20 20 20 20 20 20 20 20 20 20 20 20 20 25 25 25 25 25 25 25 5 Final Carried 35 | 6 14 35 5 15 15 15 15 17 20 19 20 19 19 17 19 20 20 20 20 20 18 25 25 25 22 25 25 25 5 Scrap Engine Consumption 425 | . . . 40 18 13 15 23 12 22 11 3 2 6 . 23 19 6 6 6 4 7 8 3 24 35 49 19 30 21 Constructs Created 16 | . . . 3 2 . . 1 . . . . . 1 . 1 . . . . . . 1 . . 2 3 . 2 . Constructs Modified 162 | . . . 8 6 3 5 15 . 10 . 2 5 . 4 7 9 . 3 2 5 . 6 . 11 15 10 13 17 6 Class Distribution -------------------- 39% | Construct 17% | Botlord-Construct 12% | Mutant 9% | Hauler-Mutant 8% | Bothacker-Construct 8% | Commander-Construct Dominant Class ---------------- Mutant | -10/Materials Mutant | -10/Subcaves Hauler-Mutant | -9/Recycling Construct | -7/Factory Construct | -7/Waste Construct | -7/Factory Construct | -7/Garrison Construct | -7/Factory Construct | -7/Garrison Construct | -6/Factory Construct | -6/Lower Caves Construct | -6/Lower Caves Construct | -6/Zion Construct | -5/Proximity Caves Construct | -5/Factory Construct | -5/Garrison Construct | -5/Factory Construct | -5/Extension Commander-Construct | -5/Cetus Commander-Construct | -5/Archives Construct | -5/Hub_04(d) Bothacker-Construct | -5/Garrison Botlord-Construct | -4/Factory Botlord-Construct | -4/Garrison Botlord-Construct | -3/Research Bothacker-Construct | -3/Armory Botlord-Construct | -2/Research Botlord-Construct | -2/Garrison Botlord-Construct | -1/Access Resources | -11 -10 -10 -9 -7 -7 -7 -7 -7 -7 -6 -6 -6 -6 -5 -5 -5 -5 -5 -5 -5 -5 -5 -4 -4 -3 -3 -2 -2 -1 ----------- Run | Yrd Mat Sub Rec Fac Was Fac Gar Fac Gar Fac Low Low Zio Pro Fac Gar Fac Ext Cet Arc Hub Gar Fac Gar Res Arm Res Gar Acc Matter Collected 9545 | 330 76 108 168 205 50 229 194 446 529 287 365 135 428 . 678 598 146 706 104 222 218 572 . 476 341 722 212 745 255 Remotely . | . . . . . . . . . . . . . . . . . . . . . . . . . . . . . . Salvage Created 14365 | 140 262 291 401 333 241 135 473 209 728 144 473 103 127 . 789 578 344 1378 93 183 898 1261 182 811 1065 640 483 1201 399 Parts 693 | 19 14 23 24 19 4 2 26 12 35 11 14 1 21 . 34 31 16 45 5 13 35 69 10 36 56 32 23 38 25 Haulers Intercepted 7 | . 1 . . 1 . . . 1 . . . . . . 1 . 1 . . . 1 . . . . . 1 . . Recyclers Shooed 3 | 1 . . . . . . . . . . . . . . . . 1 . . . 1 . . . . . . . . Parts Field Recycled . | . . . . . . . . . . . . . . . . . . . . . . . . . . . . . . Retrieved Matter . | . . . . . . . . . . . . . . . . . . . . . . . . . . . . . . Parts Self-Destructed 14 | . . 6 . . . . . . . . 7 1 . . . . . . . . . . . . . . . . . Prevented . | . . . . . . . . . . . . . . . . . . . . . . . . . . . . . . Kills | -11 -10 -10 -9 -7 -7 -7 -7 -7 -7 -6 -6 -6 -6 -5 -5 -5 -5 -5 -5 -5 -5 -5 -4 -4 -3 -3 -2 -2 -1 ------- Run | Yrd Mat Sub Rec Fac Was Fac Gar Fac Gar Fac Low Low Zio Pro Fac Gar Fac Ext Cet Arc Hub Gar Fac Gar Res Arm Res Gar Acc Combat Hostiles Destroyed 275 | . 5 7 6 6 1 1 13 3 12 3 15 4 2 . 15 26 5 23 2 1 16 29 3 20 18 10 5 20 4 Melee 12 | . . . . . . . . . . . . . . . 4 . . . . . . . . . . 2 3 . 3 Guns 24 | . 5 1 6 . . . . . . . . . . . . . . . . . . . . . 9 1 . 1 1 Cannons 174 | . . 6 . 6 1 1 8 3 12 3 7 4 1 . 6 12 2 18 2 1 13 23 3 13 9 6 2 12 . AOE 51 | . . . . . . . 5 . . . 8 . 1 . 2 12 3 5 . . 2 6 . 4 . . . 3 . Classes Destroyed 29 | 3 2 2 2 3 1 . 1 1 . . 5 . 2 . 1 1 . . . . . 1 . 2 1 1 . . . Worker 6 | 1 . . . 1 . . . . . . . . . . . . . . . . 4 . . . . . . . . Builder 6 | . . . . . . . . . . . . . . . 1 . 1 2 . . . . . . . . . . 2 Tunneler 4 | 3 . . . . . . . . . . . . . . . . . . . . 1 . . . . . . . . Hauler 7 | . 1 . . 1 . . . 1 . . . . . . 1 . 1 . . . 1 . . . . . 1 . . Recycler 10 | 1 . . . . . 1 . . . . . . . . . . 1 3 . . 3 . . . 1 . . . . Minesweeper 1 | . . . . . . . . . . . 1 . . . . . . . . . . . . . . . . . . Mechanic 2 | . . . . . . . . . . . . . . . . . . . . . . 1 . . . . . . 1 Operator 7 | . . . . 1 . . . 1 . . . . . . . . . 1 . 3 . . . . . 1 . . . Watcher 3 | . . . . . . . . . . . . . . . . . . . . . . . . 1 1 . . . 1 Swarmer 59 | . . . . 3 . . 4 1 4 . . . . . . 16 3 . . . 2 6 . 6 7 . . 7 . Cutter 2 | . . . . . . . . . . . . . . . . . . . . . . . . 2 . . . . . Grunt 72 | . 5 . . . . . 5 . 2 . 4 3 . . 6 4 2 13 . . 5 7 3 3 2 1 . 7 . Brawler 6 | . . . . . . . . 1 . . 1 . . . 1 . . 2 . . . 1 . . . . . . . Duelist 10 | . . . . . . . . . . . 1 1 . . . 1 . . . . . 6 . 1 . . . . . Sentry 54 | . . 1 3 2 . 1 3 1 2 1 1 . . . 2 1 . 8 . 1 5 4 . 7 2 4 2 3 . Demolisher 1 | . . . . . . . . . . . . . . . . . . . . . . . . . . 1 . . . Specialist 2 | . . . . . . . . . . . . . . . . . . . . . . . . . 2 . . . . Hunter 13 | . . . . . . . 1 . . 2 2 . . . 2 . . . . . 2 2 . . . 1 . . 1 Programmer 32 | . . . . 1 . . . . 4 . . . . . 4 1 . . . . 2 3 . 1 5 3 3 2 3 Behemoth 3 | . . . . . . . . . . . 1 . . . . 1 . . . . . . . . . . . 1 . Compactor 1 | . . . . . 1 . . . . . . . . . . . . . . . . . . . . . . . . Cetus Guard 2 | . . . . . . . . . . . . . . . . . . . 2 . . . . . . . . . . Executioner 2 | . . . . . . . . . . . . . . . . 2 . . . . . . . . . . . . . Subdweller 6 | . . 6 . . . . . . . . . . . . . . . . . . . . . . . . . . . Scientist 2 | . . . 2 . . . . . . . . . . . . . . . . . . . . . . . . . . Scrapper 3 | . . . 3 . . . . . . . . . . . . . . . . . . . . . . . . . . Zionite 17 | . . . . . . . . . . . . . 17 . . . . . . . . . . . . . . . . Thief 1 | . . . . . . . . . . . 1 . . . . . . . . . . . . . . . . . . Wasp 1 | . . . . . 1 . . . . . . . . . . . . . . . . . . . . . . . . Thug 1 | . . . . . . . . . . . 1 . . . . . . . . . . . . . . . . . . Butcher 1 | . . . . . . . . . . . . . 1 . . . . . . . . . . . . . . . . Fireman 3 | . . . . . . . . . . . 3 . . . . . . . . . . . . . . . . . . Mutant 1 | . . . . . . . . . . . . . 1 . . . . . . . . . . . . . . . . Best Kill Streak 11 | 2 6 2 3 3 1 1 5 1 2 2 4 3 6 . 5 5 6 7 2 2 11 7 3 6 4 3 2 3 2 Combat Bots Only 7 | . 5 2 3 3 1 1 5 1 2 2 4 3 2 . 4 5 5 7 2 1 5 6 3 6 4 3 2 3 2 Max Kills in Single Turn 4 | 1 1 1 1 1 1 1 3 1 1 1 2 1 2 . 2 4 4 3 1 1 4 2 1 3 2 1 1 2 1 Gunslinging . | . . . . . . . . . . . . . . . . . . . . . . . . . . . . . . Exploded 4 | . . . . . . . 3 . . . 2 . 1 . 1 4 3 2 . . 1 2 . 3 . . . 2 . Melee 1 | . . . . . . . . . . . . . . . 1 . . . . . . . . . . 1 1 . 1 Uniques/NPCs Destroyed . | . . . . . . . . . . . . . . . . . . . . . . . . . . . . . . Combat | -11 -10 -10 -9 -7 -7 -7 -7 -7 -7 -6 -6 -6 -6 -5 -5 -5 -5 -5 -5 -5 -5 -5 -4 -4 -3 -3 -2 -2 -1 -------- Run | Yrd Mat Sub Rec Fac Was Fac Gar Fac Gar Fac Low Low Zio Pro Fac Gar Fac Ext Cet Arc Hub Gar Fac Gar Res Arm Res Gar Acc Hostile Shots Fired 2893 | . 15 22 38 132 . 33 92 4 190 37 52 5 270 25 141 133 . 91 6 4 182 70 . 139 298 39 90 168 617 Missed 1042 | . 4 6 8 39 . 15 38 2 64 20 16 1 132 13 47 45 . 34 2 2 51 19 . 36 113 12 31 52 240 Hits 1851 | . 11 16 30 93 . 18 54 2 126 17 36 4 138 12 94 88 . 57 4 2 131 51 . 103 185 27 59 116 377 Melee 5 | . . . . . . . . . . . . . . . . . . 1 . . . . . 3 1 . . . . Projectile 1846 | . 11 16 30 93 . 18 54 2 126 17 36 4 138 12 94 88 . 56 4 2 131 51 . 100 184 27 59 116 377 AOE 7 | . . . . . . . . . . . . . . . . . . . . . 1 . . . . 5 . . 1 Critical Strikes 79 | . . 1 1 . . . 1 . 3 . 4 . 11 . 10 3 . 1 . . 6 3 . 6 5 1 4 2 17 Actively Blocked 19 | . . . . . . . . . . . . . . . . . . . . . . . . . . . . 2 17 Damage Taken 33374 | . 119 375 501 887 20 184 634 64 1463 291 615 111 2435 101 1482 1736 . 1338 69 57 2013 947 . 2321 4337 1007 1465 2116 6686 Core 3168 | . 10 33 45 86 . 10 65 . 143 32 74 39 212 25 254 81 . 125 . . 139 64 . 159 460 44 322 182 564 Absorbed by Shields 4352 | . . . . . . . . . 58 . 32 . 368 . 29 242 . 19 39 . 733 49 . . . 165 246 1047 1325 Regen/Repaired (Parts) 13735 | . . . 70 566 228 43 516 . 954 . 283 312 37 314 659 935 . 594 206 518 . 1069 . 1108 1189 1249 667 1171 1047 Core Remaining (%) 64 | 100 . . 64 . . . . . 56 . . . . 55 . . . . . . . 33 . 86 . 61 . 65 64 Volleys Fired 1245 | 15 15 20 23 35 12 10 45 19 106 25 45 10 45 . 50 92 13 111 9 24 81 85 5 102 70 39 8 89 42 Largest 3 | 2 2 2 2 2 1 1 1 1 2 1 1 1 1 . 1 1 1 2 1 1 2 2 1 1 3 3 2 2 2 Hottest 251 | 40 100 140 140 156 98 98 98 98 128 98 98 98 81 . 81 81 52 184 103 67 148 134 67 88 251 220 115 127 108 Shots Fired 1461 | 30 29 35 45 36 12 10 45 19 108 25 44 11 45 . 50 89 12 113 9 23 82 92 5 102 119 60 15 153 43 Gun 265 | 30 28 18 39 1 . . . . 2 . . . . . . . . . . 10 . . . . 61 10 5 46 15 Cannon 1004 | . . 17 6 35 12 10 43 14 95 10 32 9 21 . 48 79 10 92 9 6 77 74 5 86 53 37 10 97 17 Launcher 64 | . . . . . . . 2 . . . 12 2 24 . 2 5 1 5 . . 3 4 . 2 . . . 2 . Special 128 | . 1 . . . . . . 5 11 15 . . . . . 5 1 16 . 7 2 14 . 14 5 13 . 8 11 Kinetic 863 | 30 28 3 34 29 . . 26 . 49 7 28 9 20 . 26 16 10 90 9 10 66 67 5 29 111 30 15 99 17 Thermal 278 | . 1 32 11 6 12 10 17 14 48 . . . . . 2 53 . . . 13 . 7 . 44 . 8 . . . Explosive 62 | . . . . . . . 2 . . . 12 2 24 . 2 5 1 5 . . 3 4 . 2 . . . . . Electromagnetic 142 | . . . . 1 . . . . . 3 4 . 1 . 20 10 . 2 . . 11 . . 17 3 9 . 46 15 Robot Hit Streak 34 | 8 16 11 11 12 6 7 7 4 24 9 10 5 9 . 8 10 5 10 9 9 9 18 4 15 19 18 8 34 5 Robot Miss Streak 8 | 1 2 2 1 2 2 1 3 3 3 2 2 1 1 . 2 2 1 2 1 2 3 3 1 2 4 4 2 8 2 Penetration Max 1 | . . . . . . . . . . . . . 1 . 1 . . 1 . . 1 1 . . . . . . . Secondary Targets 2 | . 1 . 1 . . . . . . . . . . . . . . . . . . . . . . . . . . Max Gunslinging Chain 1 | . 1 . 1 . . . . . . . . . . . . . . . . . . . . . . . . . . Shots Hit Robots 980 | 22 20 24 35 31 8 10 27 12 69 19 30 7 24 . 50 60 8 73 8 16 51 66 4 64 59 40 15 94 34 Core Hits 467 | 8 7 9 13 11 2 3 13 6 22 5 33 4 22 . 24 26 9 32 5 8 33 37 3 30 29 18 9 32 14 Critical Kills 27 | . . . . . . . . . . . . . . . . . . . . 2 8 10 2 1 2 . . 1 1 Critical Parts Destroyed 25 | . . . 1 1 . . . . . . . . . . . . . . . . 8 12 . 3 . . . . . Critical Strikes 81 | . . . 1 1 . . . . . . . . . . 6 1 . 1 . 2 16 24 2 7 2 4 . 9 5 Destroy 59 | . . . 1 . . . . . . . . . . . . . . 1 . 2 16 24 2 6 2 . . 4 1 Blast 8 | . . . . . . . . . . . . . . . . . . . . . . . . . . 4 . 3 1 Corrupt 6 | . . . . . . . . . . . . . . . 2 1 . . . . . . . 1 . . . 2 . Smash 1 | . . . . 1 . . . . . . . . . . . . . . . . . . . . . . . . . Sever 4 | . . . . . . . . . . . . . . . 4 . . . . . . . . . . . . . . Impale 3 | . . . . . . . . . . . . . . . . . . . . . . . . . . . . . 3 Melee Attacks 101 | . . . . 2 . 1 8 . . . . . . . 26 3 . . . . . . . . . 9 14 . 38 Impact 6 | . . . . 2 . 1 3 . . . . . . . . . . . . . . . . . . . . . . Slashing 32 | . . . . . . . 3 . . . . . . . 26 3 . . . . . . . . . . . . . Piercing 61 | . . . . . . . . . . . . . . . . . . . . . . . . . . 9 14 . 38 Sneak Attacks 11 | . . . . 2 . 1 2 . . . . . . . 4 . . . . . . . . . . . 1 . 1 Combat Hostiles 1 | . . . . . . . 1 . . . . . . . . . . . . . . . . . . . . . . Follow-up Attacks 1 | . . . . . . . . . . . . . . . . . . . . . . . . . . . 1 . . Damage Inflicted 53573 | 223 240 514 768 1283 437 396 2026 307 2606 320 2548 319 2605 . 2835 5018 952 5883 594 470 4541 4341 295 3924 2634 1130 721 4206 1437 Guns 4344 | 223 234 258 657 28 . . . . 23 . . . . . . . . . . 241 . . . . 1261 166 103 875 275 Cannons 36055 | . . 256 111 1070 437 318 960 307 2583 320 1049 319 877 . 1608 3816 496 4852 594 195 3576 3490 236 2861 1373 810 189 3118 234 Explosions 10601 | . . . . . . . 1027 . . . 1499 . 1709 . 450 1100 456 1031 . . 901 851 59 1063 . . . 213 242 Melee 2450 | . . . . 185 . 78 39 . . . . . . . 777 102 . . . . . . . . . 154 429 . 686 Ramming 89 | . 6 . . . . . . . . . . . 19 . . . . . . . 64 . . . . . . . . Kinetic 28694 | 223 234 21 577 885 . . 716 . 1239 209 936 319 877 . 1017 518 496 4807 594 241 3358 3368 236 1090 2634 427 292 3146 234 Thermal 8934 | . . 493 191 185 437 318 244 307 1367 . 76 . . . 109 2997 . . . 229 . 122 . 1385 . 232 . . 242 Explosive 10009 | . . . . . . . 1027 . . . 1423 . 1709 . 389 1100 456 1031 . . 901 851 59 1063 . . . . . Electromagnetic 3397 | . . . . 28 . . . . . 111 113 . . . 543 301 . 45 . . 218 . . 386 . 317 . 1060 275 Impact 302 | . . . . 185 . 78 39 . . . . . . . . . . . . . . . . . . . . . . Slashing 879 | . . . . . . . . . . . . . . . 777 102 . . . . . . . . . . . . . Piercing 1269 | . . . . . . . . . . . . . . . . . . . . . . . . . . 154 429 . 686 Highest Corruption 38 | . . . . . . 5 5 5 4 6 6 6 6 . 9 9 9 9 9 9 3 7 . 1 5 7 1 2 38 Average Corruption 5 | . . . . . . 5 5 4 3 5 6 6 6 . 7 9 4 5 9 7 2 6 . 1 4 5 1 1 10 Corruption Purged 19 | . . . . . . . . 5 . . . . . . . . 5 . . 9 . . . . . . . . . Corruption Blocked . | . . . . . . . . . . . . . . . . . . . . . . . . . . . . . . Effects 342 | . . . . . . 11 25 5 9 7 17 11 2 . 27 39 15 24 4 7 3 43 . 5 10 28 3 14 33 Message Errors 81 | . . . . . . 5 11 1 3 2 3 3 . . 8 9 1 4 2 2 1 8 . . 2 7 . 3 6 Matter Fused 91 | . . . . . . 1 6 2 4 2 5 4 . . 7 9 5 9 . . . 12 . 2 2 7 3 2 9 Heat Flow Errors 36 | . . . . . . 2 1 2 . 1 . . . . 2 8 2 1 2 1 . 3 . 1 2 1 . 1 6 Energy Discharges 35 | . . . . . . 1 2 . . . 1 1 1 . 4 1 2 3 . 2 2 8 . 1 1 2 . 2 1 Parts Rejected 5 | . . . . . . . 1 . . . 1 . . . . . . . . . . . . 1 . . . . 2 Parts Fused 6 | . . . . . . . 1 . . . 1 . . . 1 1 1 1 . . . . . . . . . . . Data Loss (minor) 42 | . . . . . . 2 2 . 1 1 3 2 1 . 4 5 2 4 . . . 4 . . . 6 . 3 2 Data Loss (major) 23 | . . . . . . . 1 . . 1 2 . . . . 3 1 2 . 1 . 5 . . 1 4 . 2 . Misfires 2 | . . . . . . . . . 1 . . 1 . . . . . . . . . . . . . . . . . Alerts 2 | . . . . . . . . . . . . . . . 1 . . . . . . . . . . . . 1 . Misdirections 6 | . . . . . . . . . . . . . . . . . . . . . . . . . . . . . 6 Weapon Failures 13 | . . . . . . . . . . . 1 . . . . 3 1 . . 1 . 3 . . 2 1 . . 1 Overload Shots . | . . . . . . . . . . . . . . . . . . . . . . . . . . . . . . Overflow Damage 3121 | . . . . 194 . . 139 . 159 . 97 43 118 . 29 521 72 613 . . 471 205 . 284 85 7 51 6 27 Projectiles 2456 | . . . . 93 . . 21 . 159 . 86 43 8 . 29 406 72 502 . . 422 198 . 268 85 7 51 . 6 Explosions 543 | . . . . . . . 118 . . . 11 . 110 . . 115 . 111 . . 49 7 . 16 . . . 6 . Melee 122 | . . . . 101 . . . . . . . . . . . . . . . . . . . . . . . . 21 Knockbacks 99 | . . . . 5 . . 2 . 9 . 3 . 1 . 2 1 1 10 . . 17 10 . 1 13 1 . 19 4 Impact 1 | . . . . . . . . . . . . . . . . . . . . . 1 . . . . . . . . Kinetic 92 | . . . . 5 . . 2 . 9 . 3 . 1 . 2 1 1 10 . . 15 10 . 1 13 1 . 15 3 Secondary 6 | . . . . . . . . . . . . . . . . . . . . . 1 . . . . . . 4 1 Self-Inflicted Damage 374 | . . . . . . . . . . . 30 35 96 . . . . 11 . . 186 . . . . . . 16 . Shots 14 | . . . . . . . . . . . 1 1 6 . . . . 1 . . 3 . . . . . . 2 . Rammed 6 | . 3 . . . . . . . . . . . . . . . . . . . 3 . . . . . . . . Targets Rammed 7 | . 3 . . . . . . . . . . . 1 . . . . . . . 3 . . . . . . . . Kicked 1 | . . . . . . . . . . . . . 1 . . . . . . . . . . . . . . . . Crushed . | . . . . . . . . . . . . . . . . . . . . . . . . . . . . . . Highest Temperature 939 | . 20 108 348 234 139 235 290 180 252 132 334 234 46 . 263 324 247 86 128 197 216 294 100 434 281 273 939 270 271 Average Temperature 86 | . 8 38 112 76 50 93 98 67 88 84 94 106 16 . 66 112 138 18 70 97 72 80 51 101 117 79 345 120 115 Received Heat Transfer 4992 | . 66 42 238 126 9 33 207 18 228 30 196 36 173 18 225 237 . 282 . 18 186 216 . 361 418 84 1303 230 12 Effects 21 | . . . 2 . . . 3 . 1 . . . . . . 2 . . . . 1 5 . 3 . . 4 . . Shutdowns 1 | . . . . . . . . . . . . . . . . . . . . . . . . . . . 1 . . Energy Bleed 8 | . . . 2 . . . 1 . 1 . . . . . . . . . . . 1 . . 3 . . . . . Interference 9 | . . . . . . . 2 . . . . . . . . 2 . . . . . 5 . . . . . . . Short Circuit 1 | . . . . . . . . . . . . . . . . . . . . . . . . . . . 1 . . Damage (minor) 1 | . . . . . . . . . . . . . . . . . . . . . . . . . . . 1 . . Damage (core) 1 | . . . . . . . . . . . . . . . . . . . . . . . . . . . 1 . . Siege Activations . | . . . . . . . . . . . . . . . . . . . . . . . . . . . . . . Martial Activations . | . . . . . . . . . . . . . . . . . . . . . . . . . . . . . . Shielding Activations . | . . . . . . . . . . . . . . . . . . . . . . . . . . . . . . Robots Disrupted 3 | . . . . . . . . . . . . . . . . . . 1 . . 1 . . . . . . . 1 Combat Hostiles 3 | . . . . . . . . . . . . . . . . . . 1 . . 1 . . . . . . . 1 Robots Corrupted 15 | . . . . . . . . . . . . . . . 3 2 . . . . 1 . . 3 . 1 . 4 1 Combat Hostiles 14 | . . . . . . . . . . . . . . . 3 2 . . . . 1 . . 3 . 1 . 4 . Parts Fried 28 | . . . . . . . . . . 1 1 . . . 5 5 . . . . 3 . . 3 . 2 . 4 4 Impact Corruptions 2 | . . . . 1 . . . . . . . . . . . . . . . . . . . . . . . . 1 Robots Melted . | . . . . . . . . . . . . . . . . . . . . . . . . . . . . . . Combat Hostiles . | . . . . . . . . . . . . . . . . . . . . . . . . . . . . . . Parts Melted 10 | . . . 1 . . 2 . . 2 . . . 1 . . . . . . . . . 1 2 . . . . 1 Heat Transferred 7277 | . . 658 248 185 444 333 221 333 1406 . 50 . . . 87 2100 . . . 211 . . . 851 . . . . 150 Parts Sabotaged . | . . . . . . . . . . . . . . . . . . . . . . . . . . . . . . Parts Stolen . | . . . . . . . . . . . . . . . . . . . . . . . . . . . . . . Parts Stripped . | . . . . . . . . . . . . . . . . . . . . . . . . . . . . . . Power Chain Reactions 2 | . . . . . . . . . . . 1 . . . 1 . . . . . . . . . . . . . . Alert | -11 -10 -10 -9 -7 -7 -7 -7 -7 -7 -6 -6 -6 -6 -5 -5 -5 -5 -5 -5 -5 -5 -5 -4 -4 -3 -3 -2 -2 -1 ------- Run | Yrd Mat Sub Rec Fac Was Fac Gar Fac Gar Fac Low Low Zio Pro Fac Gar Fac Ext Cet Arc Hub Gar Fac Gar Res Arm Res Gar Acc Maximum Alert Level 4 | . . . . 2 . . 4 3 4 3 . . . . 1 4 3 4 3 2 2 4 3 4 3 1 . 2 1 Low Security (%) 44 | 100 100 . 100 4 100 100 14 . . . . . . . 72 1 . . . 54 89 . . . . 91 100 7 66 Level 1 16 | . . . . 74 . . 14 . . . . . . . 27 12 . 23 . 27 4 9 . . 61 8 . 48 33 Level 2 16 | . . . . 20 . . 8 41 7 87 . . . . . 17 78 27 . 18 6 31 27 13 29 . . 43 . Level 3 12 | . . . . . . . 41 58 40 12 . . . . . 47 21 16 100 . . 33 72 6 9 . . . . Level 4 9 | . . . . . . . 21 . 51 . . . . . . 21 . 33 . . . 25 . 79 . . . . . Level 5 . | . . . . . . . . . . . . . . . . . . . . . . . . . . . . . . High Security . | . . . . . . . . . . . . . . . . . . . . . . . . . . . . . . Max Security . | . . . . . . . . . . . . . . . . . . . . . . . . . . . . . . Peak Influence 1453 | 5 110 . 66 483 65 177 1160 894 1381 730 . . . . 267 1326 835 1453 929 524 495 1418 856 1320 742 226 113 586 351 Initial 787 | . . . . 401 65 . 95 609 603 724 . . . . . 156 695 395 787 341 2 342 744 592 742 225 113 33 351 Average 388 | 1 39 . 7 304 6 66 699 723 1090 627 . . . . 105 813 637 796 875 205 74 845 737 1113 437 101 19 379 153 Influence Increases 14545 | 25 142 20 263 611 61 333 1175 587 868 287 235 90 . 15 533 1240 525 1560 207 248 970 1146 192 868 489 635 215 613 392 Destroy 0b10 Robot/C 6678 | . 100 20 60 120 . 100 620 300 460 160 200 80 . . 300 600 220 680 80 80 380 660 60 438 216 288 60 300 96 Destroy 0b10 Robot/NC 326 | 25 5 . . 15 . 20 . 15 15 10 5 . . . 10 5 20 60 5 20 55 5 . 3 6 9 3 . 15 Destroy Leader 960 | . 22 . . 42 . 34 30 84 50 42 30 10 . . 62 30 32 94 . . 132 30 10 30 44 76 26 24 26 Allied During Kill 1816 | . . . . . . 104 248 124 63 34 . . . . . 62 134 405 80 68 60 42 32 143 . 153 . 16 48 Successful Hack 226 | . . . 6 . . 36 34 . 14 25 . . . . 9 . . 14 . . 14 14 . 5 30 . 6 8 11 Select Force Hacks 240 | . . . 180 . . . . . . . . . . . . . 30 . . . . . . . . . 30 . . Disable Machine 792 | . 15 . 15 30 . 15 30 30 45 . . . . . 45 45 15 45 30 60 135 60 60 . 36 63 9 . 9 Anti-Garrison Action 640 | . . . . . . . 100 . 100 . . . . . . 150 . . . . . 150 . 80 . . . 60 . Destroy Structure 1630 | . . . 2 4 61 24 98 19 76 1 . . . . 62 228 74 262 12 20 134 140 30 121 58 28 18 70 88 Advance Influence 400 | . . . . 400 . . . . . . . . . . . . . . . . . . . . . . . . . Partial Spotted 60 | . . . . . . . . . . 15 . . . . 15 . . . . . 30 . . . . . . . . Lose Combat Pursuer 777 | . . . . . . . 15 15 45 . . . . 15 30 120 . . . . 30 45 . 48 99 18 63 135 99 Influence Decreases 14544 | 25 142 20 259 429 247 197 151 885 349 1113 516 251 113 15 310 137 1043 961 760 1094 489 217 764 394 1379 849 387 71 977 Entered New Map 6461 | . . . . 3 121 . 41 551 259 657 206 53 113 . . 67 631 413 620 513 6 147 674 254 578 205 103 11 235 Time Decay 6050 | 25 142 10 239 416 90 146 . 294 . 356 310 198 . 15 300 . 262 458 100 581 323 . 90 . 446 474 277 . 498 Lost Part 391 | . . 10 20 10 . . . . 10 . . . . . 10 10 . 10 . . 20 10 . 20 70 . 7 40 144 Lost Ally 1217 | . . . . . 36 51 110 40 80 100 . . . . . 60 . 80 40 . 140 60 . 120 10 170 . 20 100 Purge Threat 425 | . . . . . . . . . . . . . . . . . 150 . . . . . . . 275 . . . . Squads Dispatched 53 | . 2 . . 1 . 1 . 5 . 6 . . . . 5 . 2 6 . . 9 . . . 5 3 5 . 3 Investigation 16 | . . . . . . . . 1 . 5 . . . . . . 1 3 . . 1 . . . 1 . 3 . 1 Extermination 15 | . . . . 1 . 1 . 1 . . . . . . 2 . 1 . . . 1 . . . 2 2 2 . 2 Reinforcement 19 | . 2 . . . . . . 2 . 1 . . . . 3 . . 3 . . 5 . . . 2 1 . . . Assault 2 | . . . . . . . . 1 . . . . . . . . . . . . 1 . . . . . . . . Garrison 1 | . . . . . . . . . . . . . . . . . . . . . 1 . . . . . . . . Intercept . | . . . . . . . . . . . . . . . . . . . . . . . . . . . . . . Searches Triggered . | . . . . . . . . . . . . . . . . . . . . . . . . . . . . . . Construction Impeded 5 | . . . . . . . . . . 1 . . . . . . . 2 . . 2 . . . . . . . . Haulers Reinforced 3 | . . . . . . . . 1 . . . . . . 2 . . . . . . . . . . . . . . Active Scanning Responses . | . . . . . . . . . . . . . . . . . . . . . . . . . . . . . . Cargo Convoy Interrupts . | . . . . . . . . . . . . . . . . . . . . . . . . . . . . . . Stealth | -11 -10 -10 -9 -7 -7 -7 -7 -7 -7 -6 -6 -6 -6 -5 -5 -5 -5 -5 -5 -5 -5 -5 -4 -4 -3 -3 -2 -2 -1 --------- Run | Yrd Mat Sub Rec Fac Was Fac Gar Fac Gar Fac Low Low Zio Pro Fac Gar Fac Ext Cet Arc Hub Gar Fac Gar Res Arm Res Gar Acc Distress Signals 27 | . 1 . . . . 2 . 1 . 2 . . . . 1 . 1 2 1 . 4 . . 1 3 3 2 . 3 Communications Jammed . | . . . . . . . . . . . . . . . . . . . . . . . . . . . . . . Distress Signals . | . . . . . . . . . . . . . . . . . . . . . . . . . . . . . . Times Spotted 605 | . 10 15 6 9 5 8 24 16 29 10 14 4 39 2 20 37 6 37 4 18 34 36 4 41 46 25 25 35 46 Peak Tracking Total 14 | . 3 6 4 3 2 3 8 4 5 3 4 3 12 1 4 6 3 4 5 1 7 10 4 9 13 5 14 7 13 Tactical Retreats 51 | . . . . . . . 1 1 1 . . . 4 1 2 7 . . . . 2 3 . 4 6 1 3 8 7 Traps | -11 -10 -10 -9 -7 -7 -7 -7 -7 -7 -6 -6 -6 -6 -5 -5 -5 -5 -5 -5 -5 -5 -5 -4 -4 -3 -3 -2 -2 -1 ------- Run | Yrd Mat Sub Rec Fac Was Fac Gar Fac Gar Fac Low Low Zio Pro Fac Gar Fac Ext Cet Arc Hub Gar Fac Gar Res Arm Res Gar Acc Traps Triggered 46 | . . 1 . 2 . 1 . 2 4 3 . . . . . 4 1 3 . . 2 6 1 3 . 3 . 6 4 Indirectly . | . . . . . . . . . . . . . . . . . . . . . . . . . . . . . . Trap Hack Attempts . | . . . . . . . . . . . . . . . . . . . . . . . . . . . . . . Triggered . | . . . . . . . . . . . . . . . . . . . . . . . . . . . . . . Disarmed . | . . . . . . . . . . . . . . . . . . . . . . . . . . . . . . Reprogrammed . | . . . . . . . . . . . . . . . . . . . . . . . . . . . . . . Reused . | . . . . . . . . . . . . . . . . . . . . . . . . . . . . . . Traps Extracted . | . . . . . . . . . . . . . . . . . . . . . . . . . . . . . . Installed . | . . . . . . . . . . . . . . . . . . . . . . . . . . . . . . Triggered . | . . . . . . . . . . . . . . . . . . . . . . . . . . . . . . Machines | -11 -10 -10 -9 -7 -7 -7 -7 -7 -7 -6 -6 -6 -6 -5 -5 -5 -5 -5 -5 -5 -5 -5 -4 -4 -3 -3 -2 -2 -1 ---------- Run | Yrd Mat Sub Rec Fac Was Fac Gar Fac Gar Fac Low Low Zio Pro Fac Gar Fac Ext Cet Arc Hub Gar Fac Gar Res Arm Res Gar Acc Machines Disabled 73 | . 1 . 2 2 . 1 5 2 6 . . . 2 . 3 5 1 4 2 4 9 5 4 2 4 7 1 . 1 Max in Single Turn 2 | . 1 . 1 1 . . 1 . 1 . . . 1 . 1 1 . 1 1 1 2 1 1 1 1 1 1 . 1 Garrison Access 7 | . . . . . . . . . . 2 . . . . . . . . . . . . . . 2 . 1 . 2 Garrison Relay 10 | . . . . . . . 2 . 2 . . . . . . 2 . . . . . 2 . 2 . . . . . Energy Cycler 1 | . . . . . . . . . . . . . . . . . . . . . . . . . . . . . 1 Machines Repaired . | . . . . . . . . . . . . . . . . . . . . . . . . . . . . . . Machines Dismantled 2 | . . . . . . . . . . . . . . . . . . . 1 . . . . . . 1 . . . Machines Sabotaged . | . . . . . . . . . . . . . . . . . . . . . . . . . . . . . . Overloaded Fab Kills . | . . . . . . . . . . . . . . . . . . . . . . . . . . . . . . Hacking | -11 -10 -10 -9 -7 -7 -7 -7 -7 -7 -6 -6 -6 -6 -5 -5 -5 -5 -5 -5 -5 -5 -5 -4 -4 -3 -3 -2 -2 -1 --------- Run | Yrd Mat Sub Rec Fac Was Fac Gar Fac Gar Fac Low Low Zio Pro Fac Gar Fac Ext Cet Arc Hub Gar Fac Gar Res Arm Res Gar Acc Machines Accessed 95 | . 2 3 11 1 . 6 2 3 2 13 . 1 . . 3 1 4 8 . . 7 1 1 2 7 3 7 1 6 Terminals 56 | . 2 . 4 1 . 2 2 2 2 7 . . . . 1 1 3 8 . . 6 1 . 2 2 2 3 1 4 Fabricators 6 | . . . . . . 1 . . . 2 . . . . . . . . . . . . . . 1 1 1 . . Repair Stations 4 | . . . . . . 1 . . . 1 . . . . . . . . . . . . . . 2 . . . . Recycling Units 8 | . . . 6 . . . . . . . . . . . . . 1 . . . . . . . . . 1 . . Scanalyzers 3 | . . . . . . 1 . . . 1 . . . . 1 . . . . . . . . . . . . . . Garrison Access 13 | . . . . . . 1 . 1 . 2 . . . . 1 . . . . . 1 . 1 . 2 . 2 . 2 Total Hacks 193 | . 3 7 18 1 . 13 4 5 4 31 . 6 . . 10 2 7 11 . . 13 2 2 3 14 4 17 4 12 Successful 96 | . 1 7 10 . . 3 3 2 2 12 . 6 . . 9 1 3 4 . . 2 1 2 2 7 4 7 3 5 Failed 97 | . 2 . 8 1 . 10 1 3 2 19 . . . . 1 1 4 7 . . 11 1 . 1 7 . 10 1 7 Catastrophic 31 | . . . 3 1 . 2 . 2 1 7 . . . . . . 1 3 . . 3 1 . . 2 . 2 . 3 Database Lockouts . | . . . . . . . . . . . . . . . . . . . . . . . . . . . . . . Manual 83 | . 3 . 14 1 . 7 1 3 2 17 . . . . . 2 2 5 2 . 5 1 . . 4 2 6 2 4 Terminals 107 | . 3 . 10 1 . 5 4 3 4 14 . . . . 3 2 6 11 . . 12 2 . 3 4 2 6 4 8 Fabricators 19 | . . . . . . 2 . . . 11 . . . . . . . . . . . . . . 3 2 1 . . Repair Stations 6 | . . . . . . 2 . . . 1 . . . . . . . . . . . . . . 3 . . . . Recycling Units 14 | . . . 6 . . . . . . . . . . . . . 1 . . . . . . . . . 7 . . Scanalyzers 10 | . . . . . . 3 . . . 1 . . . . 6 . . . . . . . . . . . . . . Garrison Access 22 | . . . . . . 1 . 2 . 4 . . . . 1 . . . . . 1 . 2 . 4 . 3 . 4 Terminal Hacks 42 | . 1 7 3 . . . 3 . 2 1 . 6 . . 2 1 2 3 . . . 1 . 2 2 2 . 3 1 Record 11 | . . 5 . . . . . . . . . 6 . . . . . . . . . . . . . . . . . Part Schematic 3 | . 1 . . . . . . . . . . . . . 1 . . . . . . . . . 1 . . . . Robot Analysis 1 | . . . 1 . . . . . . . . . . . . . . . . . . . . . . . . . . Open Door 7 | . . 1 . . . . 1 . . . . . . . . . 1 3 . . . . . 1 . . . . . Branch Access Points 1 | . . . . . . . . . . 1 . . . . . . . . . . . . . . . . . . . Emergency Access Points 4 | . . . . . . . 1 . 1 . . . . . . . . . . . . 1 . 1 . . . . . Recycling Unit Index 1 | . . . . . . . . . . . . . . . . . . . . . . . . . 1 . . . . Unreport Threat 1 | . . . . . . . . . . . . . . . . . 1 . . . . . . . . . . . . Maintenance Status 1 | . . . . . . . . . . . . . . . . . . . . . . . . . . . . . 1 Recall Extermination 1 | . . . . . . . . . . . . . . . . . . . . . . . . . . 1 . . . Registered Components 1 | . . . . . . . . . . . . . . . 1 . . . . . . . . . . . . . . Zone Layout 1 | . . . . . . . . . . . . . . . . . . . . . . . . . . 1 . . . Garrison Registry 4 | . . . . . . . 1 . 1 . . . . . . 1 . . . . . . . . . . . 1 . Patrol Navigation 2 | . . . . . . . . . . . . . . . . . . . . . . . . . . . . 2 . Release Object 3 | . . 1 2 . . . . . . . . . . . . . . . . . . . . . . . . . . Fabricator Hacks 4 | . . . . . . . . . . 2 . . . . . . . . . . . . . . 1 1 . . . Network Status 2 | . . . . . . . . . . 1 . . . . . . . . . . . . . . . 1 . . . Load Schematic 1 | . . . . . . . . . . . . . . . . . . . . . . . . . 1 . . . . Build 1 | . . . . . . . . . . 1 . . . . . . . . . . . . . . . . . . . Repair Station Hacks . | . . . . . . . . . . . . . . . . . . . . . . . . . . . . . . Recycling Unit Hacks 1 | . . . . . . . . . . . . . . . . . . . . . . . . . . . 1 . . Retrieve Components 1 | . . . . . . . . . . . . . . . . . . . . . . . . . . . 1 . . Scanalyzer 8 | . . . . . . 2 . . . . . . . . 6 . . . . . . . . . . . . . . Insert Component 2 | . . . . . . 1 . . . . . . . . 1 . . . . . . . . . . . . . . Analyze 6 | . . . . . . 1 . . . . . . . . 5 . . . . . . . . . . . . . . Garrison Access Hacks 22 | . . . . . . 1 . 2 . 4 . . . . 1 . . . . . 1 . 2 . 4 . 3 . 4 Unlock Access 6 | . . . . . . 1 . 1 . . . . . . 1 . . . . . 1 . 1 . . . 1 . . Seal Access 7 | . . . . . . . . . . 2 . . . . . . . . . . . . . . 2 . 1 . 2 Coupler Status 9 | . . . . . . . . 1 . 2 . . . . . . . . . . . . 1 . 2 . 1 . 2 Unauthorized Hacks 19 | . . . 7 . . . . . . 5 . . . . . . 1 1 . . 1 . . . . 1 3 . . Terminals 3 | . . . 1 . . . . . . . . . . . . . . 1 . . 1 . . . . . . . . Botnet 2 | . . . . . . . . . . . . . . . . . . 1 . . 1 . . . . . . . . Skim 1 | . . . 1 . . . . . . . . . . . . . . . . . . . . . . . . . . Fabricators 6 | . . . . . . . . . . 4 . . . . . . . . . . . . . . . 1 1 . . Report 3 | . . . . . . . . . . 2 . . . . . . . . . . . . . . . 1 . . . Liberate 1 | . . . . . . . . . . 1 . . . . . . . . . . . . . . . . . . . Haulers 1 | . . . . . . . . . . 1 . . . . . . . . . . . . . . . . . . . Overload 1 | . . . . . . . . . . . . . . . . . . . . . . . . . . . 1 . . Repair Stations 1 | . . . . . . . . . . 1 . . . . . . . . . . . . . . . . . . . Mechanics 1 | . . . . . . . . . . 1 . . . . . . . . . . . . . . . . . . . Recycling Units 9 | . . . 6 . . . . . . . . . . . . . 1 . . . . . . . . . 2 . . Recyclers 1 | . . . . . . . . . . . . . . . . . . . . . . . . . . . 1 . . Mask 1 | . . . . . . . . . . . . . . . . . . . . . . . . . . . 1 . . Tunnel 7 | . . . 6 . . . . . . . . . . . . . 1 . . . . . . . . . . . . Scanalyzers . | . . . . . . . . . . . . . . . . . . . . . . . . . . . . . . Garrison Access . | . . . . . . . . . . . . . . . . . . . . . . . . . . . . . . Data Cores Recovered 8 | . . . . 1 . 1 . 1 . . . . . . . . 1 1 . . 1 . . . . 1 . . 1 Used . | . . . . . . . . . . . . . . . . . . . . . . . . . . . . . . Hacking Detections 54 | . 1 . 4 1 . 6 1 1 1 6 . . . . 2 . 3 5 1 . 6 . 1 1 5 1 3 1 4 Full Trace Events 12 | . . . 2 . . . . 1 . 3 . . . . . 1 . 1 . . 1 . . . 1 . 2 . . Feedback Events 2 | . . . . . . . . . . 2 . . . . . . . . . . . . . . . . . . . Corruption 2 | . . . . . . . . . . 2 . . . . . . . . . . . . . . . . . . . Feedback Blocked . | . . . . . . . . . . . . . . . . . . . . . . . . . . . . . . Robot Schematics Acquired . | . . . . . . . . . . . . . . . . . . . . . . . . . . . . . . Robots Built . | . . . . . . . . . . . . . . . . . . . . . . . . . . . . . . Authchips . | . . . . . . . . . . . . . . . . . . . . . . . . . . . . . . Time . | . . . . . . . . . . . . . . . . . . . . . . . . . . . . . . Total Robot Build Rating . | . . . . . . . . . . . . . . . . . . . . . . . . . . . . . . Part Schematics Acquired 12 | . 1 . . . . 1 . . . . . . . . 9 . . . . . . . . . 1 . . . . Parts Built 1 | . . . . . . . . . . 1 . . . . . . . . . . . . . . . . . . . Authchips . | . . . . . . . . . . . . . . . . . . . . . . . . . . . . . . Time 117 | . . . . . . . . . . 117 . . . . . . . . . . . . . . . . . . . Total Part Build Rating 7 | . . . . . . . . . . 7 . . . . . . . . . . . . . . . . . . . Parts Repaired . | . . . . . . . . . . . . . . . . . . . . . . . . . . . . . . Time . | . . . . . . . . . . . . . . . . . . . . . . . . . . . . . . Parts Recycled . | . . . . . . . . . . . . . . . . . . . . . . . . . . . . . . Recycled Matter . | . . . . . . . . . . . . . . . . . . . . . . . . . . . . . . Retrieved Matter . | . . . . . . . . . . . . . . . . . . . . . . . . . . . . . . Retrieved Components 2 | . . . . . . . . . . . . . . . . . . . . . . . . . . . 2 . . Parts Scanalyzed 2 | . . . . . . 1 . . . . . . . . 1 . . . . . . . . . . . . . . Part Schematics Acquired 2 | . . . . . . 1 . . . . . . . . 1 . . . . . . . . . . . . . . Parts Damaged 1 | . . . . . . . . . . . . . . . 1 . . . . . . . . . . . . . . Bothacking | -11 -10 -10 -9 -7 -7 -7 -7 -7 -7 -6 -6 -6 -6 -5 -5 -5 -5 -5 -5 -5 -5 -5 -4 -4 -3 -3 -2 -2 -1 ------------ Run | Yrd Mat Sub Rec Fac Was Fac Gar Fac Gar Fac Low Low Zio Pro Fac Gar Fac Ext Cet Arc Hub Gar Fac Gar Res Arm Res Gar Acc Used RIF Installer 8 | . . . . . . . 1 . 2 . . . . . . 1 . . . . . 1 . 2 . . . 1 . Threat Obfuscator 2 | . . . . . . . . . . . . . . . . . . . . . . . . 2 . . . . . Zone Cloak 2 | . . . . . . . . . 1 . . . . . . . . . . . . 1 . . . . . . . Robot Detection 1 | . . . . . . . . . 1 . . . . . . . . . . . . . . . . . . . . Patrol Navigation 1 | . . . . . . . . . . . . . . . . . . . . . . . . . . . . 1 . Program Shield 1 | . . . . . . . . . . . . . . . . 1 . . . . . . . . . . . . . Robots Hacked 50 | . . . . . . . 1 2 6 7 . . . . . 4 1 . . . . 3 . 7 3 1 . 8 7 Non-combat 8 | . . . . . . . . . . 3 . . . . . . 1 . . . . . . . 3 1 . . . Combat 42 | . . . . . . . 1 2 6 4 . . . . . 4 . . . . . 3 . 7 . . . 8 7 Robot Hacks Applied 55 | . . . . . . . 1 2 6 9 . . . . . 4 1 . . . . 3 . 7 5 2 . 8 7 parse_system 4 | . . . . . . . 1 . . . . . . . . . . . . . . . . . . . . 3 . no_distress 1 | . . . . . . . . . . . . . . . . . 1 . . . . . . . . . . . . find_chute 1 | . . . . . . . . . . 1 . . . . . . . . . . . . . . . . . . . find_fabricator 1 | . . . . . . . . . . 1 . . . . . . . . . . . . . . . . . . . drop_inventory 3 | . . . . . . . . . . 2 . . . . . . . . . . . . . . 1 . . . . locate_stockpiles 1 | . . . . . . . . . . 1 . . . . . . . . . . . . . . . . . . . ignore_parts 1 | . . . . . . . . . . . . . . . . . . . . . . . . . 1 . . . . purge_threat 2 | . . . . . . . . . . . . . . . . . . . . . . . . . 2 . . . . block_reporting 1 | . . . . . . . . . . . . . . . . . . . . . . . . . . 1 . . . find_garrison 1 | . . . . . . . . 1 . . . . . . . . . . . . . . . . . . . . . scatter_targeting 1 | . . . . . . . . . 1 . . . . . . . . . . . . . . . . . . . . spike_heat 3 | . . . . . . . . . . . . . . . . . . . . . . 1 . 1 . . . . 1 amplify_resonance 13 | . . . . . . . . . 1 1 . . . . . 1 . . . . . . . 5 . . . 1 4 disable_weapons 2 | . . . . . . . . . 1 1 . . . . . . . . . . . . . . . . . . . overwrite_iff 8 | . . . . . . . . . . . . . . . . 1 . . . . . 1 . 1 . . . 4 1 formatsys_low 2 | . . . . . . . . . . . . . . . . . . . . . . . . . 1 1 . . . formatsys_high 10 | . . . . . . . . 1 3 2 . . . . . 2 . . . . . 1 . . . . . . 1 Relay Couplers Released 58 | . . . . . . . 6 . 8 . . . . . . 11 . . . . 4 10 . 8 2 . 2 4 3 Machine Destruction 46 | . . . . . . . 6 . 8 . . . . . . 7 . . . . . 10 . 8 2 . 2 . 3 Programmers 12 | . . . . . . . . . . . . . . . . 4 . . . . 4 . . . . . . 4 . Attached 25 | . . . . . . . . 1 2 3 . . . . . 3 . . . . . 1 1 5 3 1 1 2 2 Fabnet Peak Effective % . | . . . . . . . . . . . . . . . . . . . . . . . . . . . . . . Robots Rewired 33 | . . . . . . . . . . . . . . . . 2 . 11 . . 1 6 . . . 11 . 2 . Allies Hacked 2 | . . . . . . . . 1 . . . . . . . . . . . . . . . . . 1 . . . Hacks Repelled . | . . . . . . . . . . . . . . . . . . . . . . . . . . . . . . Allies | -11 -10 -10 -9 -7 -7 -7 -7 -7 -7 -6 -6 -6 -6 -5 -5 -5 -5 -5 -5 -5 -5 -5 -4 -4 -3 -3 -2 -2 -1 -------- Run | Yrd Mat Sub Rec Fac Was Fac Gar Fac Gar Fac Low Low Zio Pro Fac Gar Fac Ext Cet Arc Hub Gar Fac Gar Res Arm Res Gar Acc Total Allies 85 | . . . . . 19 . 3 1 3 4 . . . . . 5 . 16 . . 1 8 . 2 1 12 . 8 2 Largest Group 19 | . . . . . 19 11 7 4 3 4 . . . . . 2 2 10 9 7 6 5 5 6 1 9 . 4 4 Highest-Rated Group 563 | . . . . . 475 341 240 237 208 125 . . . . . 238 238 563 529 467 308 187 187 225 45 346 . 398 398 Highest-Rated Ally 159 | . . . . . 35 35 95 95 95 32 . . . . . 119 119 159 159 159 110 49 49 49 45 89 . 119 119 Total Orders 11 | . . . . . . . . . . . . . . . . . . 2 . 2 . . . . . 4 . . 3 STAY 5 | . . . . . . . . . . . . . . . . . . 1 . 1 . . . . . 2 . . 1 ROAM 2 | . . . . . . . . . . . . . . . . . . . . . . . . . . 1 . . 1 FOLLOW 4 | . . . . . . . . . . . . . . . . . . 1 . 1 . . . . . 1 . . 1 Ally Attacks 836 | . . . . . 136 41 106 44 38 31 . . . . . 21 19 125 16 10 26 25 9 36 . 98 . 25 30 Total Damage 23170 | . . . . . 4236 790 2130 1432 814 879 . . . . . 510 884 3152 398 402 701 844 264 1192 . 2340 . 1078 1124 Kills 147 | . . . . . 10 7 18 13 12 7 . . . . . 4 7 21 3 4 5 4 . 6 . 16 . 5 5 Allies Corrupted 6 | . . . . . . . . . 1 . . . . . . . . 1 . . . . . . . 4 . . . Allies Melted 2 | . . . . . . . 1 . . 1 . . . . . . . . . . . . . . . . . . . Intel | -11 -10 -10 -9 -7 -7 -7 -7 -7 -7 -6 -6 -6 -6 -5 -5 -5 -5 -5 -5 -5 -5 -5 -4 -4 -3 -3 -2 -2 -1 ------- Run | Yrd Mat Sub Rec Fac Was Fac Gar Fac Gar Fac Low Low Zio Pro Fac Gar Fac Ext Cet Arc Hub Gar Fac Gar Res Arm Res Gar Acc Active Infowar (turns) 10178 | 132 433 3022 . 160 . . . . . 422 511 366 . 763 777 1 390 863 . . . . . . 151 339 545 . 1303 Sensors 160 | . . . . 160 . . . . . . . . . . . . . . . . . . . . . . . . . IFF 3924 | . . . . . . . . . . 59 503 366 . 763 434 1 390 863 . . . . . . . . 545 . . Terrain 188 | . . 188 . . . . . . . . . . . . . . . . . . . . . . . . . . . Seismic 4760 | 132 433 2834 . . . . . . . 356 197 . . . . . . . . . . . . . 151 339 317 . 1 T.N.C. 424 | . . . . . . . . . . 81 . . . . 343 . . . . . . . . . . . . . . Machine Analysis 1302 | . . . . . . . . . . . . . . . . . . . . . . . . . . . . . 1302 Robot Analysis Total 1 | . . . 1 . . . . . . . . . . . . . . . . . . . . . . . . . . Derelict Logs Recovered 6 | . . 1 . . . . . . . . 1 . 2 2 . . . . . . . . . . . . . . . Drone Launches . | . . . . . . . . . . . . . . . . . . . . . . . . . . . . . . Drone Recoveries . | . . . . . . . . . . . . . . . . . . . . . . . . . . . . . . Exploration | -11 -10 -10 -9 -7 -7 -7 -7 -7 -7 -6 -6 -6 -6 -5 -5 -5 -5 -5 -5 -5 -5 -5 -4 -4 -3 -3 -2 -2 -1 ------------- Run | Yrd Mat Sub Rec Fac Was Fac Gar Fac Gar Fac Low Low Zio Pro Fac Gar Fac Ext Cet Arc Hub Gar Fac Gar Res Arm Res Gar Acc Turns Passed 32110 | 188 433 4017 3383 1005 775 543 912 640 1072 805 684 403 553 763 1216 1072 567 1142 214 1968 916 1453 196 1003 1100 1208 1081 1458 1340 Spaces Moved 19398 | 87 231 2113 1300 449 452 419 620 590 872 975 806 486 484 493 907 613 345 764 126 358 448 777 158 616 663 747 1040 612 847 Core 204 | 10 . . . . . . . . . . . . . . . . . . . 67 . . . . . . . . 127 Treads 7736 | 77 231 1651 367 449 399 419 619 . . . . . . . . 154 . . . 129 448 776 . 429 247 531 489 105 216 Legs 7309 | . . . 20 . . . . . 659 975 806 486 484 493 499 194 345 764 126 162 . 1 158 187 5 . 317 124 504 Wheels 1428 | . . 462 913 . 53 . . . . . . . . . . . . . . . . . . . . . . . . Hover 2054 | . . . . . . . 1 590 213 . . . . . 256 265 . . . . . . . . 342 . 234 153 . Flight 667 | . . . . . . . . . . . . . . . 152 . . . . . . . . . 69 216 . 230 . Fastest Speed 50 | 50 160 125 95 130 106 106 91 91 65 65 65 65 65 65 77 77 147 104 104 104 104 104 104 104 73 84 64 75 50 Average Speed 127 | 147 160 170 206 190 126 106 105 91 73 65 65 65 65 120 101 120 147 104 104 463 155 152 104 111 122 90 88 164 118 Slowest Speed 1950 | 160 160 395 395 256 256 106 106 91 91 65 65 65 65 133 238 147 147 147 104 1950 159 159 104 159 147 139 139 224 193 Overloaded Moves . | . . . . . . . . . . . . . . . . . . . . . . . . . . . . . . Propulsion Burnouts . | . . . . . . . . . . . . . . . . . . . . . . . . . . . . . . Robots Hopped 5 | . . . . . . . . . . . . . . . . . . . . . . . . . 3 2 . . . Potential Cave-ins 3 | . . . . . . . . . . . . . . . . . . . . . . . . . . . . . 3 Cave-ins Triggered . | . . . . . . . . . . . . . . . . . . . . . . . . . . . . . . Exploration Rate (%) 50 | 5 36 64 99 13 96 11 82 15 76 25 93 62 42 68 17 65 8 95 59 81 55 75 6 60 25 41 26 75 25 Regions Visited 29 Branch Regions 11 Pre-discovered Areas 11 | . . 2 6 . . . . . . . . 1 1 . . . 1 . . . . . . . . . . . . Known Exits Taken 9 | . . 1 . . . 1 . 1 . 1 . . . . 1 . . . . . 1 . 1 . 1 . 1 . . Unknown Exits Taken 12 | 1 1 . 1 . . . . . . . 1 1 1 1 . . 1 1 1 1 . . . . . 1 . . . Scrap Searched 13 | . . 8 . . . . . . . . 2 1 2 . . . . . . . . . . . . . . . . Spaces Dug 67 | . . 1 . . . . 1 . 1 1 . . . . 8 . . 3 . . 3 10 . 4 9 3 5 . 18 Terrain Destroyed 922 | . . 3 1 4 . 1 55 5 31 1 82 16 34 . 35 89 21 200 3 5 85 62 13 44 30 13 8 31 50 Melee 19 | . . . . . . . 1 . . . . . . . 1 . . . . . . . . . . 1 2 . 14 Projectile 386 | . . 3 1 4 . 1 10 5 31 1 5 2 . . 13 14 5 72 3 5 50 39 2 28 30 12 6 31 13 AOE 517 | . . . . . . . 44 . . . 77 14 34 . 21 75 16 128 . . 35 23 11 16 . . . . 23 Terrain Rammed . | . . . . . . . . . . . . . . . . . . . . . . . . . . . . . . Walls Destroyed . | . . . . . . . . . . . . . . . . . . . . . . . . . . . . . . Machines Disabled . | . . . . . . . . . . . . . . . . . . . . . . . . . . . . . . Actions | -11 -10 -10 -9 -7 -7 -7 -7 -7 -7 -6 -6 -6 -6 -5 -5 -5 -5 -5 -5 -5 -5 -5 -4 -4 -3 -3 -2 -2 -1 --------- Run | Yrd Mat Sub Rec Fac Was Fac Gar Fac Gar Fac Low Low Zio Pro Fac Gar Fac Ext Cet Arc Hub Gar Fac Gar Res Arm Res Gar Acc Total 25162 | 117 264 2495 1960 560 647 509 824 673 1209 1127 914 560 677 661 1115 860 391 992 192 640 584 962 185 837 840 1212 1168 918 1069 Wait 3461 | . 7 308 602 44 176 61 122 27 171 76 51 58 136 167 89 69 14 83 32 241 31 55 17 71 79 348 68 141 117 Move 19363 | 86 230 2112 1299 449 451 418 619 589 871 974 805 485 483 492 907 612 344 763 125 357 448 776 157 615 656 743 1040 611 846 Hop 4 | . . . . . . . . . . . . . . . . . . . . . . . . . 3 1 . . . Pick Up 204 | 8 7 29 9 15 4 1 5 7 19 11 1 1 2 . 11 7 2 4 2 3 2 8 3 11 6 8 10 3 5 Fast Attach 96 | 6 . 2 7 2 . 3 2 2 2 6 1 . 1 . 6 4 5 2 4 4 2 2 . 5 5 8 7 3 5 Attach 78 | 1 . 3 2 4 . . 4 3 4 4 . . 1 2 7 3 1 1 1 . 2 1 1 6 5 7 6 2 7 Detach 27 | . . . . . . . 3 . . 1 . . 1 . 6 2 . . 1 . . 1 . 1 1 5 2 2 1 Swap 175 | . 2 6 2 5 . 4 6 13 11 12 11 5 3 . 7 15 5 16 2 5 5 9 . 14 4 3 1 6 3 Drop 208 | 1 . 15 16 4 4 10 8 8 17 14 . 1 4 . 6 11 6 4 7 6 6 2 2 11 11 10 14 6 4 Fire 1245 | 15 15 20 23 35 12 10 45 19 106 25 45 10 45 . 50 92 13 111 9 24 81 85 5 102 70 39 8 89 42 Melee 99 | . . . . 2 . 1 8 . . . . . . . 26 3 . . . . . . . . . 9 12 . 38 Ram . | . . . . . . . . . . . . . . . . . . . . . . . . . . . . . . Kick 1 | . . . . . . . . . . . . . 1 . . . . . . . . . . . . . . . . Crush 6 | . 3 . . . . . . . . . . . . . . . . . . . 3 . . . . . . . . Escape Stasis 100 | . . . . . . . 1 2 7 . . . . . . 30 . 2 . . 4 12 . . . . . 42 . Rewire 62 | . . . . . . 1 . 1 . . . . . . . 11 . 2 . . . 10 . . . 24 . 12 1 Trap . | . . . . . . . . . . . . . . . . . . . . . . . . . . . . . . Miscellaneous 33 | . . . . . . . 1 2 1 4 . . . . . 1 1 4 9 . . 1 . 1 . 7 . 1 . Route ------- -11/Scrapyard -10/Materials (discovered 3 exits: [*Mat x2] / *Sub) -10/Subcaves (discovered 4 exits: [*Mat x2] / *Rec / [*Scr]) -9/Recycling -7/Factory -7/Waste -7/Factory -7/Garrison (discovered 3 exits: *Fac x3) -7/Factory (discovered 2 exits: *Fac / Gar) -7/Garrison (discovered 3 exits: *Fac x3) -6/Factory (discovered 3 exits: *Fac / *Low x2) -6/Lower Caves -6/Lower Caves (discovered 2 exits: *Fac / [*Zio]) -6/Zion -5/Proximity Caves -5/Factory (discovered 3 exits: *Fac x2 / Gar) -5/Garrison (discovered 4 exits: *Fac x3 / *Fac) -5/Factory -5/Extension (discovered 2 exits: *Fac / *Cet) -5/Cetus -5/Archives (discovered 3 exits: *Fac / *Hub x2) -5/Hub_04(d) (discovered 3 exits: *Fac x2 / Gar) -5/Garrison (discovered 3 exits: *Fac x3) -4/Factory -4/Garrison (discovered 2 exits: *Res x2) -3/Research -3/Armory -2/Research -2/Garrison (discovered 3 exits: *Acc x3) -1/Access To Epsilon Eridani History --------- Turn | Location | Event 4 | -11/Scrapyard | Discovered new exit (range 15) 189 | -11/Scrapyard | Entered Materials 190 | -10/Materials | Met a group of wandering Federalists 310 | -10/Materials | Build established: Mutant 400 | -10/Materials | Discovered new exit (range 8) 433 | -10/Materials | Discovered new exit (range 15) 535 | -10/Materials | Discovered new exit (range 14) 622 | -10/Materials | Entered Subcaves 623 | -10/Subcaves | Continued accompanying wandering Federalists (2) 623 | -10/Subcaves | Approached by a straggling Scientist 717 | -10/Subcaves | A swath of the cavern ceiling suddenly collapsed 769 | -10/Subcaves | Learned location of Zion (-6) 769 | -10/Subcaves | Met a Zionite searching for "candidates" 988 | -10/Subcaves | Discovered new exit (range 7) 1383 | -10/Subcaves | Shifting Twisted Machinery released Flamer 1385 | -10/Subcaves | Shifting Twisted Machinery released Flamer 1799 | -10/Subcaves | Discovered new exit (range 7) 2873 | -10/Subcaves | Visited Clippyterm 2878 | -10/Subcaves | Identified exit to Recycling 2878 | -10/Subcaves | Learned Research machine intel 3271 | -10/Subcaves | Shifting Twisted Machinery released Flamer 3283 | -10/Subcaves | Shifting Twisted Machinery released Sub. Machine Gun 3947 | -10/Subcaves | Build established: Hauler-Mutant 4153 | -10/Subcaves | Found SUBCON Basin 4639 | -10/Subcaves | Entered Recycling 5559 | -9/Recycling | Scanned before Scraplab entrance 5672 | -9/Recycling | Entered Scraplab 6195 | -9/Recycling | Discovered new exit (range 10) 6707 | -9/Recycling | Angered Scraplab inhabitants 6734 | -9/Recycling | Found Prototype Device 6734 | -9/Recycling | Identified Scrap Engine 7174 | -9/Recycling | Build established: Construct 8022 | -9/Recycling | Entered Factory 8022 | -7/Factory | Evolved 6 slots: Power x1, Propulsion x2, Utility x2, Weapon x1 9027 | -7/Factory | Sucked down chute 9027 | -7/Factory | Entered Waste 9060 | -7/Waste | Warlord forces began an assault 9105 | -7/Waste | Spotted C-40 Crusher 9115 | -7/Waste | Allies destroyed C-40 Crusher 9137 | -7/Waste | Spotted C-40 Crusher 9140 | -7/Waste | Allies destroyed C-40 Crusher 9144 | -7/Waste | Spotted C-40 Crusher 9145 | -7/Waste | Lost 4 allies 9154 | -7/Waste | Allies destroyed C-40 Crusher 9155 | -7/Waste | Spotted C-40 Crusher 9158 | -7/Waste | Allies destroyed C-40 Crusher 9174 | -7/Waste | Spotted C-40 Crusher 9181 | -7/Waste | Allies destroyed C-40 Crusher 9181 | -7/Waste | Spotted C-40 Crusher 9195 | -7/Waste | Destroyed C-40 Crusher 9467 | -7/Waste | Discovered new exit (range 15) 9802 | -7/Waste | Entered Factory 9802 | -7/Factory | Accompanied by 11 allies 10237 | -7/Factory | Identified exit to Garrison 10345 | -7/Factory | Entered Garrison 10345 | -7/Garrison | Accompanied by 7 allies 10371 | -7/Garrison | Triggered checkpoint 10458 | -7/Garrison | Rescued a captive Derelict 10477 | -7/Garrison | Triggered checkpoint 10481 | -7/Garrison | Triggered checkpoint 10535 | -7/Garrison | Triggered checkpoint 10625 | -7/Garrison | Lost 3 allies 10666 | -7/Garrison | Discovered new exit (range 57) 10666 | -7/Garrison | Discovered new exit (range 85) 10666 | -7/Garrison | Discovered new exit (range 20) 10679 | -7/Garrison | Found embedded Infiltrators 10781 | -7/Garrison | Installed Relay Interface Framework 10985 | -7/Garrison | Triggered checkpoint 11031 | -7/Garrison | Garrison Relay disabled 11062 | -7/Garrison | Garrison Relay disabled 11257 | -7/Garrison | Entered Factory 11257 | -7/Factory | Accompanied by 4 allies 11607 | -7/Factory | Discovered new exit (range 4) 11657 | -7/Factory | First assault squad dispatched 11897 | -7/Factory | Identified exit to Garrison 11897 | -7/Factory | Entered Garrison 11897 | -7/Garrison | Accompanied by 3 allies 12043 | -7/Garrison | Garrison Relay disabled 12215 | -7/Garrison | Triggered checkpoint 12241 | -7/Garrison | Discovered new exit (range 62) 12241 | -7/Garrison | Discovered new exit (range 51) 12241 | -7/Garrison | Discovered new exit (range 72) 12318 | -7/Garrison | Triggered checkpoint 12380 | -7/Garrison | Expanded RIF knowledge: Zone Cloak 12464 | -7/Garrison | Triggered checkpoint 12673 | -7/Garrison | Expanded RIF knowledge: Robot Detection 12709 | -7/Garrison | Triggered checkpoint 12819 | -7/Garrison | Garrison Relay disabled 12969 | -7/Garrison | Entered Factory 12969 | -6/Factory | Accompanied by 1 ally 12969 | -6/Factory | Evolved 2 slots: Utility x2 13002 | -6/Factory | Identified exit to Lower Caves 13285 | -6/Factory | Fabricated Imp. Heavy Treads (x1) 13516 | -6/Factory | Discovered new exit (range 16) 13774 | -6/Factory | Entered Lower Caves 13775 | -6/Lower Caves | Encountered a Warlord checkpoint 13783 | -6/Lower Caves | Learned 4 Factory zone layouts 13961 | -6/Lower Caves | Spotted B-75 Beast 14000 | -6/Lower Caves | Destroyed B-75 Beast 14225 | -6/Lower Caves | Ambushed by wild Derelicts 14425 | -6/Lower Caves | Discovered new exit (range 8) 14458 | -6/Lower Caves | Entered another Lower Caves area 14471 | -6/Lower Caves | Discovered new exit (range 12) 14594 | -6/Lower Caves | Encountered a Warlord checkpoint 14720 | -6/Lower Caves | Learned Extension garrison access intel 14720 | -6/Lower Caves | Learned Extension security intel 14720 | -6/Lower Caves | Learned Factory trap positions 14720 | -6/Lower Caves | Learned location of Armory (-3) 14831 | -6/Lower Caves | Discovered new exit (range 16) 14861 | -6/Lower Caves | Entered Zion 14912 | -6/Zion | Discovered new exit (range 14) 14975 | -6/Zion | System corruption cleaned by Quarantine Array 15074 | -6/Zion | RIF detected upon attempting to enter Zion 15074 | -6/Zion | Attacked by Zionites 15074 | -6/Zion | RIF detected upon attempting to enter Zion 15074 | -6/Zion | Attacked by Zionites 15074 | -6/Zion | Spotted ZC-36N(B) 15074 | -6/Zion | Spotted TQ-GE9(B) 15137 | -6/Zion | Learned Factory stockpile data 15307 | -6/Zion | Lost 6 parts (1p1n3u1w) 15414 | -6/Zion | Entered Proximity Caves 16054 | -5/Proximity Caves | Spotted B-75 Beast 16135 | -5/Proximity Caves | Learned Factory terminal intel 16169 | -5/Proximity Caves | Attracted the attention of an 0b10 checkpoint 16171 | -5/Proximity Caves | Discovered new exit (range 5) 16177 | -5/Proximity Caves | Entered Factory 16177 | -5/Factory | Evolved 2 slots: Propulsion x1, Utility x1 16179 | -5/Factory | Loaded intel: 113 trap records 16181 | -5/Factory | Loaded intel: 27 terminal locations 16466 | -5/Factory | Spotted B-75 Beast 16583 | -5/Factory | Found Fusion Bomb Launcher 16586 | -5/Factory | Found Fusion Bomb Launcher 16837 | -5/Factory | Tech Extrapolator generated special schematic: Deep Structural Scanner 17108 | -5/Factory | Discovered new exit (range 11) 17330 | -5/Factory | Discovered new exit (range 7) 17393 | -5/Factory | Identified exit to Garrison 17393 | -5/Factory | Entered Garrison 17404 | -5/Garrison | Triggered checkpoint 17441 | -5/Garrison | Garrison Relay disabled 17547 | -5/Garrison | Spotted B-75 Beast 17611 | -5/Garrison | Destroyed B-75 Beast 17677 | -5/Garrison | Garrison Relay disabled 17709 | -5/Garrison | Triggered checkpoint 17725 | -5/Garrison | Triggered checkpoint 17756 | -5/Garrison | Triggered checkpoint 17832 | -5/Garrison | Discovered new exit (range 11) 17832 | -5/Garrison | Discovered new exit (range 78) 17832 | -5/Garrison | Discovered new exit (range 47) 17832 | -5/Garrison | Discovered new exit (range 58) 17873 | -5/Garrison | Expanded RIF knowledge: Program Shield 17989 | -5/Garrison | Build established: Bothacker-Construct 18222 | -5/Garrison | Spotted Executioner 18222 | -5/Garrison | Spotted Executioner 18232 | -5/Garrison | Destroyed Executioner 18240 | -5/Garrison | Destroyed Executioner 18253 | -5/Garrison | Rewired Executioner 18259 | -5/Garrison | Rewired Executioner 18321 | -5/Garrison | Build established: Construct 18403 | -5/Garrison | Triggered checkpoint 18465 | -5/Garrison | Entered Factory 18465 | -5/Factory | Accompanied by 2 allies 18870 | -5/Factory | Discovered new exit (range 6) 19032 | -5/Factory | Entered Extension 19032 | -5/Extension | Accompanied by 2 allies 19590 | -5/Extension | Destroyed 7 combat bots 19627 | -5/Extension | Spotted B-75 Beast 19648 | -5/Extension | Allies destroyed B-75 Beast 19680 | -5/Extension | Spotted B-75 Beast 19704 | -5/Extension | Rewired B-75 Beast 19749 | -5/Extension | Rescued a captive Derelict 19854 | -5/Extension | Rescued a captive Derelict 19855 | -5/Extension | Rescued a captive Derelict 19899 | -5/Extension | Rescued A7 19973 | -5/Extension | Rescued a captive Derelict 20013 | -5/Extension | Discovered new exit (range 10) 20014 | -5/Extension | Discovered new exit (range 6) 20174 | -5/Extension | Entered Cetus 20174 | -5/Cetus | Accompanied by 9 allies (A7) 20179 | -5/Cetus | Acquired a Cetus Manufacturing Module code from A7 20190 | -5/Cetus | Spotted Cetus Guard 20190 | -5/Cetus | Spotted Cetus Guard 20193 | -5/Cetus | Spotted Cetus Guard 20199 | -5/Cetus | Allies destroyed Cetus Guard 20201 | -5/Cetus | Destroyed Cetus Guard 20202 | -5/Cetus | Allies destroyed Cetus Guard 20202 | -5/Cetus | Spotted Cetus Guard 20207 | -5/Cetus | Destroyed Cetus Guard 20207 | -5/Cetus | Cetus Manufacturing Module disabled 20276 | -5/Cetus | Build established: Commander-Construct 20313 | -5/Cetus | Escorted A7 to Cetus Mainframe 20324 | -5/Cetus | Failed to start Cetus Manufacturing Module 20345 | -5/Cetus | Discovered new exit (range 15) 20388 | -5/Cetus | Entered Archives 20388 | -5/Archives | Accompanied by 7 allies (A7) 20393 | -5/Archives | Received a hacking code to weaken MAIN.C 20480 | -5/Archives | Discovered new exit (range 14) 20507 | -5/Archives | Discovered new exit (range 15) 20702 | -5/Archives | Discovered new exit (range 15) 22356 | -5/Archives | Entered Hub_04(d) 22356 | -5/Hub_04(d) | Accompanied by 6 allies 22465 | -5/Hub_04(d) | Found Prototype Processor 22465 | -5/Hub_04(d) | Identified Exp. Core Analyzer 22482 | -5/Hub_04(d) | Lost 6 allies 22932 | -5/Hub_04(d) | Build established: Construct 22946 | -5/Hub_04(d) | Discovered new exit (range 6) 22992 | -5/Hub_04(d) | Core integrity fell below 50% 23119 | -5/Hub_04(d) | Discovered new exit (range 15) 23191 | -5/Hub_04(d) | Garrison activated, responded to threat 23256 | -5/Hub_04(d) | First assault squad dispatched 23272 | -5/Hub_04(d) | Identified exit to Garrison 23272 | -5/Hub_04(d) | Entered Garrison 23287 | -5/Garrison | Spotted B-90 Cyclops 23350 | -5/Garrison | Triggered checkpoint 23528 | -5/Garrison | Triggered checkpoint 23573 | -5/Garrison | Garrison Relay disabled 23644 | -5/Garrison | Discovered new exit (range 14) 23845 | -5/Garrison | Triggered checkpoint 23877 | -5/Garrison | Build established: Bothacker-Construct 23930 | -5/Garrison | Discovered new exit (range 15) 24290 | -5/Garrison | Triggered checkpoint 24292 | -5/Garrison | Triggered checkpoint 24513 | -5/Garrison | Discovered new exit (range 13) 24528 | -5/Garrison | Triggered checkpoint 24558 | -5/Garrison | Garrison Relay disabled 24672 | -5/Garrison | Expanded RIF knowledge: Zone Cloak 24725 | -5/Garrison | Entered Factory 24725 | -4/Factory | Accompanied by 5 allies 24725 | -4/Factory | Evolved 2 slots: Propulsion x1, Utility x1 24821 | -4/Factory | Allied Derelicts emerged from ambush trap array 24893 | -4/Factory | Build established: Botlord-Construct 24908 | -4/Factory | Identified exit to Garrison 24921 | -4/Factory | Entered Garrison 24921 | -4/Garrison | Accompanied by 5 allies 24975 | -4/Garrison | Rescued a captive Derelict 25033 | -4/Garrison | Garrison Relay disabled 25072 | -4/Garrison | Spotted B-86 Titan 25074 | -4/Garrison | Triggered checkpoint 25100 | -4/Garrison | Allies destroyed B-86 Titan 25126 | -4/Garrison | Triggered checkpoint 25243 | -4/Garrison | Expanded RIF knowledge: Threat Obfuscation 25366 | -4/Garrison | Discovered new exit (range 9) 25443 | -4/Garrison | Expanded RIF knowledge: Threat Obfuscation 25500 | -4/Garrison | Garrison Relay disabled 25630 | -4/Garrison | Triggered checkpoint 25885 | -4/Garrison | Discovered new exit (range 12) 25924 | -4/Garrison | Entered Research 25924 | -3/Research | Evolved 2 slots: Power x1, Weapon x1 25925 | -3/Research | Identified exit to Armory 25926 | -3/Research | Loaded intel: 92 machine locations 26973 | -3/Research | Spotted B-86 Titan 27024 | -3/Research | Entered Armory 27026 | -3/Armory | Lost 5 parts (3u2w) 27532 | -3/Armory | Found Gamma Bomb Array 27536 | -3/Armory | Found Gamma Bomb Array 27795 | -3/Armory | Lost 7 allies 27845 | -3/Armory | Build established: Bothacker-Construct 28033 | -3/Armory | P-80 Master assimilated allied Electro 8c 28226 | -3/Armory | Discovered new exit (range 4) 28232 | -3/Armory | Entered Research 28232 | -2/Research | Evolved 2 slots: Utility x2 28404 | -2/Research | Spotted B-90 Cyclops 28647 | -2/Research | Spotted B-90 Cyclops 28835 | -2/Research | Build established: Botlord-Construct 29118 | -2/Research | Found Prototype Hackware 29118 | -2/Research | Identified Exp. System Shield 29313 | -2/Research | Identified exit to Garrison 29313 | -2/Research | Entered Garrison 29501 | -2/Garrison | Triggered checkpoint 29538 | -2/Garrison | Expanded RIF knowledge: Patrol Navigation 29713 | -2/Garrison | Spotted B-90 Cyclops 29864 | -2/Garrison | Triggered checkpoint 29967 | -2/Garrison | Destroyed B-90 Cyclops 30070 | -2/Garrison | Discovered new exit (range 15) 30158 | -2/Garrison | Build established: Bothacker-Construct 30200 | -2/Garrison | Discovered new exit (range 70) 30200 | -2/Garrison | Discovered new exit (range 50) 30200 | -2/Garrison | Discovered new exit (range 22) 30439 | -2/Garrison | Found embedded Infiltrators 30555 | -2/Garrison | Triggered checkpoint 30611 | -2/Garrison | Triggered checkpoint 30727 | -2/Garrison | Rewired Executioner 30739 | -2/Garrison | Rewired Executioner 30771 | -2/Garrison | Entered Access 30771 | -1/Access | Accompanied by 4 allies 30771 | -1/Access | Evolved 2 slots: Utility x2 30778 | -1/Access | Build established: Botlord-Construct 31213 | -1/Access | Spotted B-99 Colossus 31213 | -1/Access | Spotted B-99 Colossus 31393 | -1/Access | System corruption reached 10% 31822 | -1/Access | Spotted B-99 Colossus 31929 | -1/Access | Energy Cycler disabled 32033 | -1/Access | System corruption reached 30% 32075 | -1/Access | Lost 7 parts (2p1n2u2w) 32108 | -1/Access | Discovered new exit (range 6) 32111 | *** | Escaped! Last Messages --------------- 32064_ System corrupted: Heat flow error (+249). 32072_ Slug penetrates Wall. 32072_ Penetrated by Slug. 32076_ Adv. Heat Sink destroyed. 32076_ Penetrated by Slug. 32076_ Slug penetrates Wall. 32076_ C-30 ARC bursts open, deploying its payload. 32076_ P-80 Master unfolds itself. 32079_ Penetrated by Slug. 32080_ System corrupted: Graphene Brace rejected. 32080_ Acquired Graphene Brace. 32081_ P-80 Master resets A-15 Conveyor, system corruption cleaned. 32083_ Penetrated by Slug. 32083_ Slug penetrates Wall. 32083_ Penetrated by Slug. 32083_ Acquired 6 matter. 32097_ YV%ZKH1ISEJ4US,D DS&9LIP5HJTT E7SS<,AU%0 32108_ The Access Shell folds into the floor. 32108_ EXIT=FOUND 32110_ K-01 Serf cleans the Terminal. Map ----- +----------------------------------------------------+ | ########## # ############# #???????? | | "" # + #???????? | | "T # # #???????? | | ########## # # [* #???????? | | ????###??## ## # =! ! ######### | | ??????????# ########++#+##############+##" | | ??????????# #????????? ???????# # | | ??????????# #????????? ??????# # "" | | ???""G""??# #????????? ?????# # """% | | ????"?"???# #????????"""" ?????# ! # T"=* | | ??????????# #??????""""""" ????# # ""%! | | ??????????# #???? ???# " !! | | ??????????# #?? #??# " ! | | ??????????# # #??# # | | ??????????+ + #??# # | | ??????????# ########????????##??#########" | | ??????????# #????????????????????????????# | | ??????????# #????????????????????????????# | | ??????????# #?????###????????????????????# | | ??????????# ####### ##########???????????# | | ??????????# """T""" "???????????# | | ??????????# k""" """ "???????????# | | ??????????# % "???? #####+### | | ??????????# "???? % | | ??????????# "" "???? ! | | ??????????# @" "???? | | ??????????# "???? | | ??????????# k "????? ### ## | | ??????????# "????? ??????# ?? | | ??????????# "????????????# ??? | | ??????????# ####### ##########????????????# ??? | | ??????????# ??????###?????????????????????# ???? | | ??????????# ??????????????????????????????# ????? | | ??????????# ??????????????????????????????#?????? | | ??????????# ????????????????????????????????????? | | ??????????# ????????????????????????????????????? | | ??????????# ????????????????????????????????????? | | ??????????# ????????????????????????????????????? | | ""?""????????????????????????????????????????????? | | "F?""????????????????????????????????????????????? | | """""????????????????????????????????????????????? | | ?????????????????????????????????????????????????? | | ?????????????????????????????????????????????????? | | ?????????????????????????????????????????????????? | | ?????????????????????????????????????????????????? | | ?????????????????????????????????????????????????? | | ?????????????????????????????????????????????????? | | ?????????????????????????????????????????????????? | | ?????????????????????????????????????????????????? | | ?????????????????????????????????????????????????? | +----------------------------------------------------+ Best States ------------- Heat Dissipation 98 Coolant Potential 100 Energy Generation 80 Energy Capacity 1995 Matter Stores 300 Matter Capacity 300 Sight Range 16 Robot Scan Range 15 Terrain Scan Range 16 Terrain Scan Density 10 Base Temperature (-) 200 Armor Coverage 800 Weapon Cycling 25 Phase Shifting 15 Evasion (%) 70 Targeting Accuracy 13 Target Analysis 9 Core Analysis 8 Recoil Reduction 6 Matter Filtering 30 Kinecelleration 40 Offensive Hacking 20 Defensive Hacking 30 Relay Coupler Types 3 Relay Coupler Value 53 Authchip Count 4 Item Schematics ----------------- Hcp. Storage Unit | -10/Materials | Hacked Imp. Cooling System | -7/Factory | Scanalyzed Imp. KE Penetrator | -5/Factory | Scanalyzed Mak. Power Source | -5/Factory | Extrapolated Com. HERF Cannon | -5/Factory | Hacked Deep Structural Scanner | -5/Factory | Extrapolated Mak. Coolant Network | -5/Factory | Extrapolated Mak. Medium Armor Plating | -5/Factory | Extrapolated Mak. Thermal Plating | -5/Factory | Extrapolated Mak. Ablative Armor | -5/Factory | Extrapolated Mak. Axe | -5/Factory | Extrapolated Enh. Hardcell Cannon | -3/Research | Hacked Robot Schematics ------------------ None Fabricated ------------ Imp. Heavy Treads | x1 | -6/Factory | Preloaded Repaired ---------- Nothing Alien Tech Used ----------------- None Achievements -------------- None Challenges ------------ None Game ------ Seed NovaXenonMultirail Manual? 0 Play Time 06:04:02 Cumulative 506.8 hours Start 2025.05.14 @ 12:14:45 End 2025.05.21 @ 00:32:16 Sessions 7 Manual Loads 0 Difficulty Rogue Special Mode None Game No. 303 Rogue 278 Adventurer 7 Explorer 18 Win Type 0 Total 40 Types 26/0/6/2/0/1/1/2/0/2 Lore% 93 Gallery% 89 Achievement% 80 Wizard Run 0 Options --------- Layout 0 ASCII 0 Keyboard 0 Movement Numpad Keybinds 0 Fullscreen 1 Font 12/Smallcaps Map View 83x54 Zoom Use 0% Tactical HUD 1 Map Filters NONE Filters NONE Steam 1 RUN: 76539a3a-446a-460d-8cab-2c2dc4543753